Workbook

Sheet 세입
A1: 2018학년도 소주한국학교 세입 (본)예산서 | N1: 전교생 : 310명 예상(유20, 초110, 중90, 고90) 교직원자녀 : 20명 예상
M2: (단위 : RMB)
A3: 세입
A4: 항 | B4: 목 | C4: 산출기초
C5: 세목 | D5: 내역 | E5: 단가 | F5: 인원(기간) | I5: 횟수 | M5: 금액
A6: 학부모부담수입
B7: 입학금 | C7: 입학금 | E7: ¥8,000.00 | F7: * | G7: 20 | H7: 명 | I7: * | J7: 1 | K7: 회 | L7: = | M7: =E7*G7*J7 -> ¥160,000.00
B8: 소계 | M8: =SUM(M7) -> ¥160,000.00
B9: 수업료
C10: 유치원 | E10: ¥25,800.00 | F10: * | G10: 20 | H10: 명 | I10: * | J10: 1 | K10: 년 | L10: = | M10: =E10*G10*J10 -> ¥516,000.00
C11: 초등 | E11: ¥25,800.00 | F11: * | G11: 100 | H11: 명 | I11: * | J11: 1 | K11: 년 | L11: = | M11: =E11*G11*J11 -> ¥2,580,000.00
C12: 중등 | E12: ¥30,900.00 | F12: * | G12: 85 | H12: 명 | I12: * | J12: 1 | K12: 년 | L12: = | M12: =E12*G12*J12 -> ¥2,626,500.00
C13: 고등 | E13: ¥36,100.00 | F13: * | G13: 85 | H13: 명 | I13: * | J13: 1 | K13: 년 | L13: = | M13: =E13*G13*J13 -> ¥3,068,500.00
B14: 소계 | M14: =SUM(M10:M13) -> ¥8,791,000.00
B15: 수익자부담경비
C16: 현장학습 | D16: 초등 | E16: ¥1,000.00 | F16: * | G16: 110 | H16: 명 | I16: * | J16: 1 | K16: 회 | L16: = | M16: =E16*G16*J16 -> ¥110,000.00
D17: 중등 | E17: ¥1,000.00 | F17: * | G17: 90 | H17: 명 | I17: * | J17: 1 | K17: 회 | L17: = | M17: =E17*G17*J17 -> ¥90,000.00
D18: 고등 | E18: ¥1,000.00 | F18: * | G18: 90 | H18: 명 | I18: * | J18: 1 | K18: 회 | L18: = | M18: =E18*G18*J18 -> ¥90,000.00
C19: 급간식비 | D19: 전교생 | E19: ¥25.00 | F19: * | G19: 310 | H19: 명 | I19: * | J19: 175 | K19: 회 | L19: = | M19: ¥1,356,250.00
C20: 방과후학교 | D20: 초등 | E20: ¥1,000.00 | F20: * | G20: 110 | H20: 명 | I20: * | J20: 1 | K20: 년 | L20: = | M20: ¥110,000.00
D21: 중등 | E21: ¥1,000.00 | F21: * | G21: 80 | H21: 명 | I21: * | J21: 1 | K21: 년 | L21: = | M21: =E21*G21*J21 -> ¥80,000.00
D22: 고등 | E22: ¥1,000.00 | F22: * | G22: 80 | H22: 명 | I22: * | J22: 1 | K22: 년 | L22: = | M22: =E22*G22*J22 -> ¥80,000.00
C23: 통학버스비 | D23: 전교생 | E23: ¥44.00 | F23: * | G23: 260 | H23: 명 | I23: * | J23: 183 | K23: 일 | L23: = | M23: ¥2,093,520.00
B24: 소계 | M24: =SUM(M16:M23) -> ¥4,009,770.00
A25: 계 | M25: =M8+M14+M24 -> ¥12,960,770.00
A26: 교육부지원금
B27: 교직원인건비 | C27: 교직원인건비 | E27: ¥2,600,000.00 | F27: * | G27: 1 | H27: 년 | I27: * | J27: 1 | K27: 회 | L27: = | M27: =E27*G27*J27 -> ¥2,600,000.00
B28: 운영비 | C28: 학교운영비 | E28: ¥1,600,000.00 | F28: * | G28: 1 | H28: 년 | I28: * | J28: 1 | K28: 회 | L28: = | M28: ¥1,600,000.00
A29: 계 | M29: =SUM(M27:M28) -> ¥4,200,000.00
A30: 자체수입
B31: 사용료및수수료 | C31: 편입학시험전형료 | E31: ¥300.00 | F31: * | G31: 8 | H31: 명 | I31: * | J31: 4 | K31: 회 | L31: = | M31: =E31*G31*J31 -> ¥9,600.00
C32: 시설사용료 | E32: ¥4,000.00 | F32: * | G32: 1 | H32: 년 | I32: * | J32: 5 | K32: 회 | L32: = | M32: ¥20,000.00
C33: 제증명수수료 | E33: ¥5.00 | F33: * | G33: 400 | H33: 명 | I33: * | J33: 10 | K33: 회 | L33: = | M33: =E33*G33*J33 -> ¥20,000.00
B34: 잡수입 | C34: 예적금이자 | E34: ¥2,000.00 | F34: * | G34: 1 | H34: 년 | I34: * | J34: 40 | K34: 회 | L34: = | M34: =E34*G34*J34 -> ¥80,000.00
C35: 행정잡수입 | E35: ¥2,000.00 | F35: * | G35: 1 | H35: 년 | I35: * | J35: 25 | K35: 회 | L35: = | M35: =E35*G35*J35 -> ¥50,000.00
A36: 계 | M36: =SUM(M31:M35) -> ¥179,600.00
A37: 기타수입
B38: 과년도수입 | C38: 과년도수입 | E38: ¥150,000.00 | F38: * | G38: 1 | H38: 년 | I38: * | J38: 1 | K38: 회 | L38: = | M38: =E38*G38*J38 -> ¥150,000.00
B39: 이월금 | C39: 순세계잉여금 | E39: ¥2,000,000.00 | F39: * | G39: 1 | H39: 년 | I39: * | J39: 1 | K39: 회 | L39: = | M39: =E39*G39*J39 -> ¥2,000,000.00
C40: 계속비이월금 | E40: ¥6,300,000.00 | F40: * | G40: 1 | H40: 년 | I40: * | J40: 1 | K40: 회 | L40: = | M40: =E40*G40*J40 -> ¥6,300,000.00
A41: 계 | M41: =SUM(M38:M40) -> ¥8,450,000.00
A42: 합계 | M42: =M25+M29+M36+M41 -> ¥25,790,370.00

Sheet 세출
A1: 2018학년도 소주한국학교 세출 (본)예산서
M2: (단위 : RMB)
A3: 세출
A4: 항 | B4: 목 | C4: 세목 | D4: 세부산출 내역
D5: 내역 | E5: 단가 | F5: 인원(기간) | I5: 횟수 | M5: 금액
A6: 1.인건비 | B6: 1.교원 | C6: 교원 | D6: 기본급(교감) | E6: ¥14,600.00 | F6: * | G6: 1 | H6: 명 | I6: * | J6: 13 | K6: 월 | L6: = | M6: =E6*G6*J6 -> ¥189,800.00
D7: 기본급 | E7: ¥13,600.00 | F7: * | G7: 27 | H7: 명 | I7: * | J7: 13 | K7: 월 | L7: = | M7: =E7*G7*J7 -> ¥4,773,600.00
D8: 개인소득세 | E8: ¥30,000.00 | F8: * | G8: 4 | H8: 명 | I8: * | J8: 1 | K8: 년 | L8: = | M8: =E8*G8*J8 -> ¥120,000.00
D9: 직책수당 | E9: ¥3,500.00 | F9: * | G9: 1 | H9: 명 | I9: * | J9: 12 | K9: 월 | L9: = | M9: ¥42,000.00
D10: 경력수당 | E10: ¥2,000.00 | F10: * | G10: 27 | H10: 명 | I10: * | J10: 12 | K10: 월 | L10: = | M10: ¥648,000.00
D11: 부장수당 | E11: ¥1,000.00 | F11: * | G11: 6 | H11: 명 | I11: * | J11: 12 | K11: 월 | L11: = | M11: ¥72,000.00
D12: 담임수당 | E12: ¥1,000.00 | F12: * | G12: 19 | H12: 명 | I12: * | J12: 12 | K12: 월 | L12: = | M12: ¥228,000.00
D13: 가족수당 | E13: ¥400.00 | F13: * | G13: 23 | H13: 명 | I13: * | J13: 12 | K13: 월 | L13: = | M13: ¥110,400.00
D14: 초과근무수당 | E14: ¥500.00 | F14: * | G14: 27 | H14: 명 | I14: * | J14: 10 | K14: 월 | L14: = | M14: ¥135,000.00
D15: 주택수당(교감) | E15: ¥5,500.00 | F15: * | G15: 1 | H15: 명 | I15: * | J15: 12 | K15: 월 | L15: = | M15: ¥66,000.00
D16: 주택수당 | E16: ¥4,500.00 | F16: * | G16: 27 | H16: 명 | I16: * | J16: 12 | K16: 월 | L16: = | M16: ¥1,458,000.00
D17: 항공료 | E17: ¥3,000.00 | F17: * | G17: 10 | H17: 명 | I17: * | J17: 2 | K17: 회 | L17: = | M17: ¥60,000.00
D18: 초기정착비 | E18: ¥2,000.00 | F18: * | G18: 10 | H18: 명 | I18: * | J18: 1 | K18: 회 | L18: = | M18: ¥20,000.00
D19: 근속장려금(교감) | E19: ¥14,600.00 | F19: * | G19: 1 | H19: 명 | I19: * | J19: 1 | K19: 년 | L19: = | M19: ¥14,600.00
D20: 근속장려금 | E20: ¥13,600.00 | F20: * | G20: 27 | H20: 명 | I20: * | J20: 1 | K20: 년 | L20: = | M20: ¥367,200.00
C21: 원어민(영어) | D21: 기본급 | E21: ¥17,700.00 | F21: * | G21: 3 | H21: 명 | I21: * | J21: 12 | K21: 월 | L21: = | M21: ¥637,200.00
D22: 개인소득세 | E22: ¥20,000.00 | F22: * | G22: 3 | H22: 명 | I22: * | J22: 1 | K22: 년 | L22: = | M22: =E22*G22*J22 -> ¥60,000.00
D23: 항공료 | E23: ¥5,000.00 | F23: * | G23: 3 | H23: 명 | I23: * | J23: 1 | K23: 회 | L23: = | M23: ¥15,000.00
D24: 근속장려금 | E24: ¥14,100.00 | F24: * | G24: 3 | H24: 명 | I24: * | J24: 1 | K24: 회 | L24: = | M24: ¥42,300.00
C25: 중국어강사 | D25: 기본급 | E25: ¥5,000.00 | F25: * | G25: 5 | H25: 명 | I25: * | J25: 13 | K25: 월 | L25: = | M25: ¥325,000.00
D26: 개인소득세 | E26: ¥400.00 | F26: * | G26: 5 | H26: 명 | I26: * | J26: 1 | K26: 년 | L26: = | M26: ¥2,000.00
D27: 사회보험,주택공적금,경제보상금 | E27: ¥32,000.00 | F27: * | G27: 5 | H27: 명 | I27: * | J27: 1 | K27: 년 | L27: = | M27: ¥160,000.00
D28: 근속장려금 | E28: ¥5,000.00 | F28: * | G28: 5 | H28: 명 | I28: * | J28: 1 | K28: 회 | L28: = | M28: ¥25,000.00
C29: 시간강사 | D29: 기본급 | E29: ¥150.00 | F29: * | G29: 1 | H29: 명 | I29: * | J29: 600 | K29: 시간 | L29: = | M29: ¥90,000.00
D30: 개인소득세 | E30: ¥3,000.00 | F30: * | G30: 1 | H30: 명 | I30: * | J30: 1 | K30: 년 | L30: = | M30: =E30*G30*J30 -> ¥3,000.00
C31: 교원비자수속 | D31: 비자수속비 | E31: ¥3,000.00 | F31: * | G31: 15 | H31: 명 | I31: * | J31: 1 | K31: 회 | L31: = | M31: =E31*G31*J31 -> ¥45,000.00
C32: 교원급식비 | D32: 급식비 | E32: ¥20.00 | F32: * | G32: 27 | H32: 명 | I32: * | J32: 183 | K32: 일 | L32: = | M32: ¥98,820.00
B33: 소계 | M33: =SUM(M6:M32) -> ¥9,807,920.00
B34: 2.직원및계약교직원 | C34: 행정실장 | D34: 기본급 | E34: ¥14,600.00 | F34: * | G34: 1 | H34: 명 | I34: * | J34: 13 | K34: 월 | L34: = | M34: =E34*G34*J34 -> ¥189,800.00
D35: 직책수당 | E35: ¥3,500.00 | F35: * | G35: 1 | H35: 명 | I35: * | J35: 12 | K35: 월 | L35: = | M35: =E35*G35*J35 -> ¥42,000.00
D36: 가족수당 | E36: ¥400.00 | F36: * | G36: 1 | H36: 명 | I36: * | J36: 12 | K36: 월 | L36: = | M36: ¥4,800.00
D37: 경력수당 | E37: ¥1,900.00 | F37: * | G37: 1 | H37: 명 | I37: * | J37: 12 | K37: 월 | L37: = | M37: ¥22,800.00
D38: 주택수당 | E38: ¥5,000.00 | F38: * | G38: 1 | H38: 명 | I38: * | J38: 12 | K38: 월 | L38: = | M38: ¥60,000.00
D39: 초과근무수당 | E39: ¥1,000.00 | F39: * | G39: 1 | H39: 명 | I39: * | J39: 12 | K39: 월 | L39: = | M39: ¥12,000.00
D40: 근속장려금 | E40: ¥14,600.00 | F40: * | G40: 1 | H40: 명 | I40: * | J40: 1 | K40: 회 | L40: = | M40: ¥14,600.00
C41: 행정부장 | D41: 기본급 | E41: ¥13,600.00 | F41: * | G41: 1 | H41: 명 | I41: * | J41: 13 | K41: 월 | L41: = | M41: =E41*G41*J41 -> ¥176,800.00
D42: 직책수당 | E42: ¥1,000.00 | F42: * | G42: 1 | H42: 명 | I42: * | J42: 12 | K42: 월 | L42: = | M42: =E42*G42*J42 -> ¥12,000.00
D43: 경력수당 | E43: ¥1,200.00 | F43: * | G43: 1 | H43: 명 | I43: * | J43: 12 | K43: 월 | L43: = | M43: ¥14,400.00
D44: 주택수당 | E44: ¥4,500.00 | F44: * | G44: 1 | H44: 명 | I44: * | J44: 12 | K44: 월 | L44: = | M44: =E44*G44*J44 -> ¥54,000.00
D45: 초과근무수당 | E45: ¥500.00 | F45: * | G45: 1 | H45: 명 | I45: * | J45: 12 | K45: 월 | L45: = | M45: =E45*G45*J45 -> ¥6,000.00
D46: 근속장려금 | E46: ¥13,600.00 | F46: * | G46: 1 | H46: 명 | I46: * | J46: 1 | K46: 회 | L46: = | M46: =E46*G46*J46 -> ¥13,600.00
C47: 행정직원(한국) 사서 등 | D47: 기본급 | E47: ¥10,000.00 | F47: * | G47: 2 | H47: 명 | I47: * | J47: 13 | K47: 월 | L47: = | M47: =E47*G47*J47 -> ¥260,000.00
D48: 초과근무수당 | E48: ¥300.00 | F48: * | G48: 2 | H48: 명 | I48: * | J48: 12 | K48: 월 | L48: = | M48: ¥7,200.00
D49: 근속장려금 | E49: ¥10,000.00 | F49: * | G49: 2 | H49: 명 | I49: * | J49: 1 | K49: 회 | L49: = | M49: ¥20,000.00
C50: 행정직원(중국) 보건교사 추가 | D50: 기본급 | E50: ¥6,000.00 | F50: * | G50: 8 | H50: 명 | I50: * | J50: 13 | K50: 월 | L50: = | M50: ¥624,000.00
D51: 개인소득세 | E51: ¥500.00 | F51: * | G51: 8 | H51: 명 | I51: * | J51: 1 | K51: 년 | L51: = | M51: =E51*G51*J51 -> ¥4,000.00
D52: 사회보험,주택공적금,경제보상금 | E52: ¥32,500.00 | F52: * | G52: 8 | H52: 명 | I52: * | J52: 1 | K52: 년 | L52: = | M52: ¥260,000.00
D53: 초과근무수당 | E53: ¥500.00 | F53: * | G53: 8 | H53: 명 | I53: * | J53: 12 | K53: 월 | L53: = | M53: ¥48,000.00
D54: 근속장려금 | E54: ¥6,000.00 | F54: * | G54: 8 | H54: 명 | I54: * | J54: 1 | K54: 회 | L54: = | M54: ¥48,000.00
C55: 교직원비자수속 | D55: 비자수속비 | E55: ¥3,000.00 | F55: * | G55: 2 | H55: 명 | I55: * | J55: 1 | K55: 회 | L55: = | M55: ¥6,000.00
C56: 교직원급식비 | D56: 급식비 | E56: ¥20.00 | F56: * | G56: 10 | H56: 명 | I56: * | J56: 240 | K56: 일 | L56: = | M56: ¥48,000.00
B57: 소계 | M57: =SUM(M34:M56) -> ¥1,948,000.00
A58: 계 | M58: =M33+M57 -> ¥11,755,920.00
A59: 2.학교운영비 | B59: 1.일반운영비 | C59: 공통운영비 | D59: 사무용품구입 | E59: ¥1,000.00 | F59: * | G59: 1 | H59: 년 | I59: * | J59: 12 | K59: 월 | L59: = | M59: =E59*G59*J59 -> ¥12,000.00
D60: 내빈접대물품구입 | E60: ¥1,500.00 | F60: * | G60: 1 | H60: 년 | I60: * | J60: 12 | K60: 월 | L60: = | M60: =E60*G60*J60 -> ¥18,000.00
D61: 관내여비 | E61: ¥100.00 | F61: * | G61: 20 | H61: 회 | I61: * | J61: 12 | K61: 월 | L61: = | M61: ¥24,000.00
D62: 관외여비 | E62: ¥500.00 | F62: * | G62: 8 | H62: 회 | I62: * | J62: 12 | K62: 월 | L62: = | M62: ¥48,000.00
D63: 국외여비 | E63: ¥5,000.00 | F63: * | G63: 4 | H63: 명 | I63: * | J63: 5 | K63: 회 | L63: = | M63: ¥100,000.00
C64: 전기시설관리 | D64: 전기료 | E64: ¥10,000.00 | F64: * | G64: 1 | H64: 년 | I64: * | J64: 12 | K64: 월 | L64: = | M64: ¥120,000.00
C65: 상하수도관리 | D65: 상하수도요금 | E65: ¥5,000.00 | F65: * | G65: 1 | H65: 년 | I65: * | J65: 12 | K65: 월 | L65: = | M65: ¥60,000.00
C66: 정보통신관리 | D66: 전화요금 | E66: ¥1,500.00 | F66: * | G66: 1 | H66: 년 | I66: * | J66: 12 | K66: 월 | L66: = | M66: ¥18,000.00
D67: 인터넷요금 | E67: ¥3,600.00 | F67: * | G67: 1 | H67: 년 | I67: * | J67: 12 | K67: 월 | L67: = | M67: ¥43,200.00
C68: 소방관리 | D68: 소화기구입 | E68: ¥200.00 | F68: * | G68: 50 | H68: 개 | I68: * | J68: 1 | K68: 년 | L68: = | M68: ¥10,000.00
C69: 학교시설용역관리 | D69: 경비 및 청소 용역 | E69: ¥35,000.00 | F69: * | G69: 1 | H69: 년 | I69: * | J69: 12 | K69: 월 | L69: = | M69: ¥420,000.00
D70: 소방용역 | E70: ¥10,000.00 | F70: * | G70: 1 | H70: 년 | I70: * | J70: 12 | K70: 월 | L70: = | M70: =E70*G70*J70 -> ¥120,000.00
D71: 방역소득 | E71: ¥2,500.00 | F71: * | G71: 1 | H71: 년 | I71: * | J71: 12 | K71: 월 | L71: = | M71: =E71*G71*J71 -> ¥30,000.00
D72: 조경 등 교정 관리용역 | E72: ¥10,000.00 | F72: * | G72: 1 | H72: 년 | I72: * | J72: 12 | K72: 월 | L72: = | M72: ¥120,000.00
D73: 인터넷유지보수용역 | E73: ¥3,000.00 | F73: * | G73: 1 | H73: 년 | I73: * | J73: 12 | K73: 월 | L73: = | M73: =E73*G73*J73 -> ¥36,000.00
D74: 복사기임대료 | E74: ¥800.00 | F74: * | G74: 5 | H74: 대 | I74: * | J74: 12 | K74: 월 | L74: = | M74: ¥48,000.00
D75: 쓰레기처리 용역 | E75: ¥1,000.00 | F75: * | G75: 1 | H75: 년 | I75: * | J75: 12 | K75: 월 | L75: = | M75: ¥12,000.00
C76: 일반행정관리 | D76: 복사용지구입 | E76: ¥1,200.00 | F76: * | G76: 1 | H76: 년 | I76: * | J76: 12 | K76: 월 | L76: = | M76: ¥14,400.00
D77: 칠판소모품구입 | E77: ¥500.00 | F77: * | G77: 1 | H77: 년 | I77: * | J77: 12 | K77: 월 | L77: = | M77: ¥6,000.00
D78: 프린터토너 | E78: ¥1,000.00 | F78: * | G78: 1 | H78: 년 | I78: * | J78: 12 | K78: 월 | L78: = | M78: ¥12,000.00
D79: 행정장비유지보수 | E79: ¥1,000.00 | F79: * | G79: 1 | H79: 년 | I79: * | J79: 12 | K79: 월 | L79: = | M79: ¥12,000.00
D80: 각종수수료 | E80: ¥2,000.00 | F80: * | G80: 1 | H80: 년 | I80: * | J80: 1 | K80: 회 | L80: = | M80: ¥2,000.00
D81: 회계검사비 | E81: ¥2,500.00 | F81: * | G81: 1 | H81: 년 | I81: * | J81: 2 | K81: 회 | L81: = | M81: ¥5,000.00
D82: 우편요금 | E82: ¥1,000.00 | F82: * | G82: 1 | H82: 년 | I82: * | J82: 12 | K82: 월 | L82: = | M82: ¥12,000.00
D83: 간행물비 | E83: ¥500.00 | F83: * | G83: 1 | H83: 년 | I83: * | J83: 12 | K83: 월 | L83: = | M83: ¥6,000.00
C84: 특근매식비 | D84: 야간특근매식비 | E84: ¥40.00 | F84: * | G84: 10 | H84: 명 | I84: * | J84: 200 | K84: 일 | L84: = | M84: ¥80,000.00
C85: 차량보조비 | D85: 기사 및 관리 용역비 | E85: ¥10,000.00 | F85: * | G85: 1 | H85: 대 | I85: * | J85: 12 | K85: 월 | L85: = | M85: ¥120,000.00
D86: 유류비 및 통행료 등 | E86: ¥3,000.00 | F86: * | G86: 4 | H86: 대 | I86: * | J86: 12 | K86: 월 | L86: = | M86: ¥144,000.00
B87: 소계 | M87: =SUM(M59:M86) -> ¥1,652,600.00
B88: 2.교수학습활동비 | C88: 교과활동(유) | D88: 자유선택활동교재교구 | E88: ¥3,000.00 | F88: * | G88: 1 | H88: 년 | I88: * | J88: 2 | K88: 회 | L88: = | M88: =E88*G88*J88 -> ¥6,000.00
D89: 미술교재교구 | E89: ¥100.00 | F89: * | G89: 20 | H89: 명 | I89: * | J89: 2 | K89: 회 | L89: = | M89: ¥4,000.00
D90: 중국어교재교구 | E90: ¥150.00 | F90: * | G90: 20 | H90: 명 | I90: * | J90: 1 | K90: 회 | L90: = | M90: =E90*G90*J90 -> ¥3,000.00
D91: 영어교재교구 | E91: ¥200.00 | F91: * | G91: 20 | H91: 명 | I91: * | J91: 1 | K91: 회 | L91: = | M91: ¥4,000.00
C92: 교과활동(초) | D92: 체육교구 구입 | E92: ¥2,500.00 | F92: * | G92: 1 | H92: 년 | I92: * | J92: 2 | K92: 회 | L92: = | M92: =E92*G92*J92 -> ¥5,000.00
D93: 미술교구 구입 | E93: ¥1,000.00 | F93: * | G93: 1 | H93: 년 | I93: * | J93: 5 | K93: 회 | L93: = | M93: =E93*G93*J93 -> ¥5,000.00
D94: 음악교구 구입 | E94: ¥500.00 | F94: * | G94: 1 | H94: 년 | I94: * | J94: 7 | K94: 회 | L94: = | M94: ¥3,500.00
D95: 과학교구 구입 | E95: ¥3,500.00 | F95: * | G95: 1 | H95: 년 | I95: * | J95: 2 | K95: 회 | L95: = | M95: ¥7,000.00
C96: 교과활동(중) | D96: 체육교구 구입 | E96: ¥2,000.00 | F96: * | G96: 1 | H96: 년 | I96: * | J96: 3 | K96: 회 | L96: = | M96: =E96*G96*J96 -> ¥6,000.00
D97: 사회과교구 구입 | E97: ¥2,000.00 | F97: * | G97: 1 | H97: 년 | I97: * | J97: 2 | K97: 회 | L97: = | M97: =E97*G97*J97 -> ¥4,000.00
D98: 수학과교구 구입 | E98: ¥2,000.00 | F98: * | G98: 1 | H98: 년 | I98: * | J98: 2 | K98: 회 | L98: = | M98: =E98*G98*J98 -> ¥4,000.00
D99: 음악교구 구입 | E99: ¥4,500.00 | F99: * | G99: 1 | H99: 년 | I99: * | J99: 2 | K99: 회 | L99: = | M99: =E99*G99*J99 -> ¥9,000.00
D100: 과학교구 구입 | E100: ¥3,500.00 | F100: * | G100: 1 | H100: 년 | I100: * | J100: 2 | K100: 회 | L100: = | M100: =E100*G100*J100 -> ¥7,000.00
D101: 과학기자재구입 | E101: ¥2,000.00 | F101: * | G101: 1 | H101: 년 | I101: * | J101: 5 | K101: 회 | L101: = | M101: =E101*G101*J101 -> ¥10,000.00
C102: 학급운영비(유) | D102: 학급운영비 | E102: ¥500.00 | F102: * | G102: 1 | H102: 년 | I102: * | J102: 2 | K102: 회 | L102: = | M102: =E102*G102*J102 -> ¥1,000.00
C103: 학급운영비(초) | D103: 학급운영비 | E103: ¥100.00 | F103: * | G103: 7 | H103: 반 | I103: * | J103: 10 | K103: 월 | L103: = | M103: ¥7,000.00
C104: 학급운영비(중) | D104: 학급운영비 | E104: ¥100.00 | F104: * | G104: 12 | H104: 반 | I104: * | J104: 10 | K104: 월 | L104: = | M104: =E104*G104*J104 -> ¥12,000.00
C105: 중국어교육(초) | D105: 중국어과자료구입 | E105: ¥500.00 | F105: * | G105: 1 | H105: 년 | I105: * | J105: 3 | K105: 회 | L105: = | M105: ¥1,500.00
D106: 외국어페스티벌 물품 구입 | E106: ¥2,000.00 | F106: * | G106: 1 | H106: 년 | I106: * | J106: 1 | K106: 회 | L106: = | M106: ¥2,000.00
D107: 중국어경시대회 | E107: ¥1,000.00 | F107: * | G107: 1 | H107: 년 | I107: * | J107: 1 | K107: 회 | L107: = | M107: ¥1,000.00
C108: 중국어교육(중) | D108: 중국어과자료구입 | E108: ¥500.00 | F108: * | G108: 1 | H108: 년 | I108: * | J108: 2 | K108: 회 | L108: = | M108: =E108*G108*J108 -> ¥1,000.00
D109: 외국어페스티벌 물품 구입 | E109: ¥20.00 | F109: * | G109: 150 | H109: 명 | I109: * | J109: 1 | K109: 회 | L109: = | M109: ¥3,000.00
D110: 중국어경시대회 | E110: ¥600.00 | F110: * | G110: 1 | H110: 년 | I110: * | J110: 2 | K110: 회 | L110: = | M110: ¥1,200.00
C111: 영어교육(초) | D111: 헤드헌터소개비 | E111: ¥5,000.00 | F111: * | G111: 1 | H111: 년 | I111: * | J111: 1 | K111: 회 | L111: = | M111: ¥5,000.00
D112: 영어과 자료구입 | E112: ¥500.00 | F112: * | G112: 1 | H112: 년 | I112: * | J112: 8 | K112: 회 | L112: = | M112: ¥4,000.00
D113: 외국어페스티벌 물품 구입 | E113: ¥800.00 | F113: * | G113: 1 | H113: 년 | I113: * | J113: 7 | K113: 교시 | L113: = | M113: ¥5,600.00
D114: 외국어경시대회 | E114: ¥800.00 | F114: * | G114: 1 | H114: 년 | I114: * | J114: 4 | K114: 명 | L114: = | M114: ¥3,200.00
C115: 영어교육(중) | D115: 원어민교사 채용경비 | E115: ¥5,000.00 | F115: * | G115: 1 | H115: 년 | I115: * | J115: 1 | K115: 회 | L115: = | M115: =E115*G115*J115 -> ¥5,000.00
D116: 영어과 자료구입 | E116: ¥2,500.00 | F116: * | G116: 1 | H116: 년 | I116: * | J116: 4 | K116: 회 | L116: = | M116: ¥10,000.00
D117: 교재구입 | E117: ¥5,000.00 | F117: * | G117: 1 | H117: 년 | I117: * | J117: 1 | K117: 회 | L117: = | M117: =E117*G117*J117 -> ¥5,000.00
D118: 외국어페스티벌 물품 구입 | E118: ¥40.00 | F118: * | G118: 150 | H118: 명 | I118: * | J118: 1 | K118: 회 | L118: = | M118: ¥6,000.00
D119: 외국어신문발간 | E119: ¥40.00 | F119: * | G119: 300 | H119: 명 | I119: * | J119: 1 | K119: 회 | L119: = | M119: =E119*G119*J119 -> ¥12,000.00
D120: 외국어경시대회 | E120: ¥20.00 | F120: * | G120: 150 | H120: 명 | I120: * | J120: 1 | K120: 회 | L120: = | M120: ¥3,000.00
C121: 동아리활동(초) | D121: 태권도,합창부,사물놀이 | E121: ¥2,500.00 | F121: * | G121: 1 | H121: 년 | I121: * | J121: 2 | K121: 회 | L121: = | M121: =E121*G121*J121 -> ¥5,000.00
D122: 동아리 활동 경비 | E122: ¥250.00 | F122: * | G122: 15 | H122: 개 | I122: * | J122: 2 | K122: 학기 | L122: = | M122: =E122*G122*J122 -> ¥7,500.00
C123: 동아리활동(중) | D123: 교지 편집 | E123: ¥25,000.00 | F123: * | G123: 1 | H123: 회 | I123: * | J123: 1 | K123: 년 | L123: = | M123: ¥25,000.00
D124: 동아리 활동 경비 | E124: ¥1,500.00 | F124: * | G124: 20 | H124: 개 | I124: * | J124: 1 | K124: 회 | L124: = | M124: ¥30,000.00
C125: 특색사업(유) | D125: 태권도교구 | E125: ¥3,000.00 | F125: * | G125: 1 | H125: 년 | I125: * | J125: 1 | K125: 회 | L125: = | M125: =E125*G125*J125 -> ¥3,000.00
D126: 자연체험활동 | E126: ¥100.00 | F126: * | G126: 2 | H126: 회 | I126: * | J126: 20 | K126: 명 | L126: = | M126: =E126*G126*J126 -> ¥4,000.00
D127: 유초연계교육교재교구구입 | E127: ¥100.00 | F127: * | G127: 2 | H127: 회 | I127: * | J127: 20 | K127: 명 | L127: = | M127: =E127*G127*J127 -> ¥4,000.00
D128: 독서프로그램물품구입 | E128: ¥50.00 | F128: * | G128: 2 | H128: 회 | I128: * | J128: 20 | K128: 명 | L128: = | M128: =E128*G128*J128 -> ¥2,000.00
C129: 특색사업(초) | D129: 태권도교구 | E129: ¥3,000.00 | F129: * | G129: 1 | H129: 년 | I129: * | J129: 1 | K129: 회 | L129: = | M129: ¥3,000.00
C130: 각종 행사(유) | D130: 어린이날행사물품 | E130: ¥50.00 | F130: * | G130: 20 | H130: 명 | I130: * | J130: 1 | K130: 년 | L130: = | M130: =E130*G130*J130 -> ¥1,000.00
D131: 물총놀이 | E131: ¥1,000.00 | F131: * | G131: 1 | H131: 년 | I131: * | J131: 1 | K131: 회 | L131: = | M131: ¥1,000.00
D132: 산타행사물품 | E132: ¥1,000.00 | F132: * | G132: 1 | H132: 년 | I132: * | J132: 1 | K132: 회 | L132: = | M132: ¥1,000.00
D133: 학예회 행사 물품 | E133: ¥2,000.00 | F133: * | G133: 1 | H133: 년 | I133: * | J133: 1 | K133: 회 | L133: = | M133: ¥2,000.00
C134: 각종 행사(초) | D134: 한글날행사 물품 구입 | E134: ¥50.00 | F134: * | G134: 150 | H134: 명 | I134: * | J134: 1 | K134: 회 | L134: = | M134: ¥7,500.00
D135: 과학의날 행사 물품 구입 | E135: ¥700.00 | F135: * | G135: 7 | H135: 학급 | I135: * | J135: 1 | K135: 회 | L135: = | M135: ¥4,900.00
D136: 별빛뒤뜰야영물품 구입 | E136: ¥10,000.00 | F136: * | G136: 1 | H136: 년 | I136: * | J136: 1 | K136: 회 | L136: = | M136: ¥10,000.00
D137: 체육대회운영비 | E137: ¥5,000.00 | F137: * | G137: 1 | H137: 년 | I137: * | J137: 1 | K137: 회 | L137: = | M137: =E137*G137*J137 -> ¥5,000.00
D138: 체육대회행사평가회비 | E138: ¥150.00 | F138: * | G138: 20 | H138: 명 | I138: * | J138: 1 | K138: 회 | L138: = | M138: =E138*G138*J138 -> ¥3,000.00
D139: 학예회관련 물품 구입 | E139: ¥8,500.00 | F139: * | G139: 1 | H139: 년 | I139: * | J139: 1 | K139: 회 | L139: = | M139: ¥8,500.00
D140: 학예회평가회비 | E140: ¥150.00 | F140: * | G140: 20 | H140: 명 | I140: * | J140: 1 | K140: 회 | L140: = | M140: ¥3,000.00
C141: 각종 행사(중) | D141: 국어과대회운영비 | E141: ¥25.00 | F141: * | G141: 200 | H141: 명 | I141: * | J141: 1 | K141: 회 | L141: = | M141: =E141*G141*J141 -> ¥5,000.00
D142: 과학의날 행사 물품 구입 | E142: ¥5,000.00 | F142: * | G142: 1 | H142: 년 | I142: * | J142: 1 | K142: 회 | L142: = | M142: =E142*G142*J142 -> ¥5,000.00
D143: 별빛뒤뜰야영물품 구입 | E143: ¥5,000.00 | F143: * | G143: 1 | H143: 년 | I143: * | J143: 2 | K143: 회 | L143: = | M143: =E143*G143*J143 -> ¥10,000.00
D144: 진로페스티벌 | E144: ¥5,000.00 | F144: * | G144: 1 | H144: 년 | I144: * | J144: 1 | K144: 회 | L144: = | M144: =E144*G144*J144 -> ¥5,000.00
D145: 학예회관련 물품 구입 | E145: ¥5,000.00 | F145: * | G145: 1 | H145: 년 | I145: * | J145: 1 | K145: 회 | L145: = | M145: ¥5,000.00
D146: 학예회평가회비 | E146: ¥150.00 | F146: * | G146: 25 | H146: 명 | I146: * | J146: 1 | K146: 회 | L146: = | M146: ¥3,750.00
D147: 체육대회운영비 | E147: ¥3,000.00 | F147: * | G147: 1 | H147: 년 | I147: * | J147: 2 | K147: 회 | L147: = | M147: =E147*G147*J147 -> ¥6,000.00
D148: 체육대회행사평가회비 | E148: ¥150.00 | F148: * | G148: 25 | H148: 명 | I148: * | J148: 2 | K148: 회 | L148: = | M148: =E148*G148*J148 -> ¥7,500.00
D149: 학교 간 경기운영비 | E149: ¥5,000.00 | F149: * | G149: 1 | H149: 년 | I149: * | J149: 2 | K149: 회 | L149: = | M149: =E149*G149*J149 -> ¥10,000.00
D150: 교내스포츠대회 | E150: ¥2,500.00 | F150: * | G150: 1 | H150: 년 | I150: * | J150: 4 | K150: 회 | L150: = | M150: =E150*G150*J150 -> ¥10,000.00
C151: 환경정리(유) | D151: 교실게시물 | E151: ¥500.00 | F151: * | G151: 1 | H151: 년 | I151: * | J151: 2 | K151: 회 | L151: = | M151: =E151*G151*J151 -> ¥1,000.00
C152: 환경정리(초) | D152: 교실게시물 | E152: ¥500.00 | F152: * | G152: 7 | H152: 실 | I152: * | J152: 2 | K152: 회 | L152: = | M152: =E152*G152*J152 -> ¥7,000.00
C153: 입학식(유) | D153: 입학일준비물품 | E153: ¥150.00 | F153: * | G153: 20 | H153: 명 | I153: * | J153: 1 | K153: 회 | L153: = | M153: =E153*G153*J153 -> ¥3,000.00
D154: 입학식교육과정안내서 | E154: ¥30.00 | F154: * | G154: 50 | H154: 부 | I154: * | J154: 1 | K154: 회 | L154: = | M154: ¥1,500.00
C155: 입학식(초) | D155: 입학예비소집일 준비물품 | E155: ¥100.00 | F155: * | G155: 25 | H155: 명 | I155: * | J155: 1 | K155: 회 | L155: = | M155: ¥2,500.00
D156: 입학초 적응활동교재비 | E156: ¥40.00 | F156: * | G156: 25 | H156: 명 | I156: * | J156: 1 | K156: 회 | L156: = | M156: =E156*G156*J156 -> ¥1,000.00
D157: 교육과정안내서 | E157: ¥30.00 | F157: * | G157: 500 | H157: 장 | I157: * | J157: 1 | K157: 회 | L157: = | M157: ¥15,000.00
C158: 졸업식(유) | D158: 졸업,수료식 물품 | E158: ¥150.00 | F158: * | G158: 20 | H158: 명 | I158: * | J158: 1 | K158: 회 | L158: = | M158: ¥3,000.00
C159: 졸업식(초) | D159: 졸업식 상품 | E159: ¥500.00 | F159: * | G159: 20 | H159: 명 | I159: * | J159: 1 | K159: 회 | L159: = | M159: =E159*G159*J159 -> ¥10,000.00
C160: 졸업식(중) | D160: 졸업식 준비물품 구입 | E160: ¥13,000.00 | F160: * | G160: 1 | H160: 년 | I160: * | J160: 1 | K160: 회 | L160: = | M160: ¥13,000.00
D161: 졸업식 상품 | E161: ¥500.00 | F161: * | G161: 40 | H161: 명 | I161: * | J161: 1 | K161: 회 | L161: = | M161: ¥20,000.00
C162: 보건교육(중) | D162: 보건교육 | E162: ¥1,000.00 | F162: * | G162: 1 | H162: 대 | I162: * | J162: 1 | K162: 회 | L162: = | M162: =E162*G162*J162 -> ¥1,000.00
C163: 보건교육(중) | D163: 안전교육 | E163: ¥1,000.00 | F163: * | G163: 1 | H163: 대 | I163: * | J163: 1 | K163: 회 | L163: = | M163: =E163*G163*J163 -> ¥1,000.00
C164: 교무학사운영(초) | D164: 사무용품구입 | E164: ¥1,000.00 | F164: * | G164: 1 | H164: 년 | I164: * | J164: 2 | K164: 회 | L164: = | M164: =E164*G164*J164 -> ¥2,000.00
C165: 교무학사운영(중) | D165: 상장용지 | E165: ¥5.00 | F165: * | G165: 300 | H165: 장 | I165: * | J165: 4 | K165: 회 | L165: = | M165: ¥6,000.00
D166: 사무용품구입 | E166: ¥1,000.00 | F166: * | G166: 1 | H166: 년 | I166: * | J166: 5 | K166: 회 | L166: = | M166: =E166*G166*J166 -> ¥5,000.00
D167: 졸업앨범구입 | E167: ¥1,000.00 | F167: * | G167: 2 | H167: 년 | I167: * | J167: 5 | K167: 회 | L167: = | M167: =E167*G167*J167 -> ¥10,000.00
D168: 시험물품구입비 | E168: ¥100.00 | F168: * | G168: 1 | H168: 년 | I168: * | J168: 16 | K168: 회 | L168: = | M168: =E168*G168*J168 -> ¥1,600.00
D169: 성적처리관련 물품구입 | E169: ¥4,000.00 | F169: * | G169: 1 | H169: 년 | I169: * | J169: 1 | K169: 회 | L169: = | M169: ¥4,000.00
C170: 교육과정운영(유) | D170: 누리교육과정관련 물품 구입 | E170: ¥200.00 | F170: * | G170: 20 | H170: 명 | I170: * | J170: 1 | K170: 회 | L170: = | M170: ¥4,000.00
C171: 교육과정운영(초) | D171: 학부모상담 등 다과 구입 | E171: ¥5.00 | F171: * | G171: 100 | H171: 명 | I171: * | J171: 4 | K171: 회 | L171: = | M171: ¥2,000.00
D172: 중국교류학습 | E172: ¥2,500.00 | F172: * | G172: 1 | H172: 년 | I172: * | J172: 2 | K172: 회 | L172: = | M172: =E172*G172*J172 -> ¥5,000.00
D173: 줄넘기인증제 | E173: ¥20.00 | F173: * | G173: 150 | H173: 명 | I173: * | J173: 2 | K173: 회 | L173: = | M173: =E173*G173*J173 -> ¥6,000.00
D174: 배려생물기르기 | E174: ¥1,000.00 | F174: * | G174: 7 | H174: 학년 | I174: * | J174: 1 | K174: 회 | L174: = | M174: ¥7,000.00
D175: 모범배지물품 | E175: ¥25.00 | F175: * | G175: 150 | H175: 명 | I175: * | J175: 1 | K175: 회 | L175: = | M175: ¥3,750.00
C176: 교육과정운영(중) | D176: 슈퍼스터디 | E176: ¥5,000.00 | F176: * | G176: 1 | H176: 년 | I176: * | J176: 2 | K176: 회 | L176: = | M176: ¥10,000.00
D177: 인턴쉽프로그램 | E177: ¥2,500.00 | F177: * | G177: 4 | H177: 회 | I177: * | J177: 1 | K177: 년 | L177: = | M177: ¥10,000.00
D178: 학교특색활동 | E178: ¥1,500.00 | F178: * | G178: 1 | H178: 년 | I178: * | J178: 2 | K178: 회 | L178: = | M178: ¥3,000.00
D179: 방송실운영 | E179: ¥1,000.00 | F179: * | G179: 1 | H179: 년 | I179: * | J179: 6 | K179: 회 | L179: = | M179: =E179*G179*J179 -> ¥6,000.00
D180: 학생활동지원비 | E180: ¥500.00 | F180: * | G180: 1 | H180: 년 | I180: * | J180: 10 | K180: 회 | L180: = | M180: ¥5,000.00
D181: 교육실습생협의비 | E181: ¥2,500.00 | F181: * | G181: 2 | H181: 년 | I181: * | J181: 1 | K181: 회 | L181: = | M181: =E181*G181*J181 -> ¥5,000.00
D182: 대학입시설명회 | E182: ¥700.00 | F182: * | G182: 1 | H182: 년 | I182: * | J182: 10 | K182: 회 | L182: = | M182: =E182*G182*J182 -> ¥7,000.00
D183: 모의면접 | E183: ¥400.00 | F183: * | G183: 1 | H183: 년 | I183: * | J183: 3 | K183: 회 | L183: = | M183: =E183*G183*J183 -> ¥1,200.00
D184: 12학년2학기프로그램 | E184: ¥10,000.00 | F184: * | G184: 1 | H184: 년 | I184: * | J184: 1 | K184: 회 | L184: = | M184: =E184*G184*J184 -> ¥10,000.00
D185: 학부모상담 등 다과 구입 | E185: ¥5.00 | F185: * | G185: 100 | H185: 명 | I185: * | J185: 6 | K185: 회 | L185: = | M185: ¥3,000.00
D186: 진학지도및간담회 | E186: ¥5,000.00 | F186: * | G186: 1 | H186: 년 | I186: * | J186: 2 | K186: 회 | L186: = | M186: ¥10,000.00
D187: 명사초청 진로특강 | E187: ¥5,000.00 | F187: * | G187: 1 | H187: 년 | I187: * | J187: 2 | K187: 회 | L187: = | M187: ¥10,000.00
C188: 교직원연수 | D188: 교직원연수 | E188: ¥200.00 | F188: * | G188: 50 | H188: 명 | I188: * | J188: 3 | K188: 회 | L188: = | M188: =E188*G188*J188 -> ¥30,000.00
D189: 부장연수 | E189: ¥5,000.00 | F189: * | G189: 1 | H189: 년 | I189: * | J189: 3 | K189: 회 | L189: = | M189: ¥15,000.00
D190: 화동지역행정실연수 | E190: ¥10,000.00 | F190: * | G190: 1 | H190: 년 | I190: * | J190: 2 | K190: 회 | L190: = | M190: ¥20,000.00
C191: 현장체험학습(초) | D191: 대련한국학교 교류학습물품 | E191: ¥300.00 | F191: * | G191: 20 | H191: 명 | I191: * | J191: 1 | K191: 회 | L191: = | M191: ¥6,000.00
D192: 대련한국학교 인솔교사 지원비 | E192: ¥5,000.00 | F192: * | G192: 3 | H192: 명 | I192: * | J192: 2 | K192: 회 | L192: = | M192: ¥30,000.00
D193: 교실밖체험학습운영비 | E193: ¥1,500.00 | F193: * | G193: 1 | H193: 년 | I193: * | J193: 2 | K193: 회 | L193: = | M193: =E193*G193*J193 -> ¥3,000.00
C194: 현장체험학습(중) | D194: 인솔교사 지원비 등 | E194: ¥5,100.00 | F194: * | G194: 1 | H194: 년 | I194: * | J194: 2 | K194: 회 | L194: = | M194: =E194*G194*J194 -> ¥10,200.00
C195: 도서관운영(초) | D195: 윤독도서구입 | E195: ¥3,000.00 | F195: * | G195: 7 | H195: 학급 | I195: * | J195: 1 | K195: 회 | L195: = | M195: =E195*G195*J195 -> ¥21,000.00
C196: 도서관운영(중) | D196: 도서구입 | E196: ¥300.00 | F196: * | G196: 100 | H196: 권 | I196: * | J196: 2 | K196: 회 | L196: = | M196: =E196*G196*J196 -> ¥60,000.00
D197: 명예사서지원(교통비,식비) | E197: ¥1,000.00 | F197: * | G197: 4 | H197: 명 | I197: * | J197: 10 | K197: 회 | L197: = | M197: =E197*G197*J197 -> ¥40,000.00
D198: 도서관 소모품 | E198: ¥5.00 | F198: * | G198: 3,000 | H198: 장 | I198: * | J198: 1 | K198: 회 | L198: = | M198: =E198*G198*J198 -> ¥15,000.00
C199: 교육정보화운영(중) | D199: 전산소모품구입 | E199: ¥500.00 | F199: * | G199: 1 | H199: 년 | I199: * | J199: 12 | K199: 월 | L199: = | M199: ¥6,000.00
D200: 프린터토너 | E200: ¥500.00 | F200: * | G200: 1 | H200: 년 | I200: * | J200: 10 | K200: 회 | L200: = | M200: ¥5,000.00
... 47 more rows

Sheet Sheet2
C2: 예상 학생수
B3: 산출기초 | C3: 초 | D3: ¥120.00
C4: 중 | D4: ¥72.00
C5: 고 | D5: ¥78.00
G16: 87600 | H16: =G16/12 -> 7300

Sheet Sheet1
A4: 외환송금요청
A5: 은행 | B5: 농협
A6: 계좌번호 | B6: 456-01-022156
A7: 예금주 | B7: 비엘소프트(blsoft)
A8: 송금액 | B8: ₩510,000
A9: 출금계좌 | B9: 0771-003947-25-001
A10: 송금신청자 | B10: CHO YUNHEE (품의서 작성한 담당선생님)
